lending/lending_fUSD_20240809
["ID","MTS","AMOUNT","RATE_DAILY","PERIOD"]
[334530456,1723174271761,-500.0,0.00024281,5]
[334530457,1723174271771,-1416.26,0.00024281,5]
[334530458,1723174271781,-1480.02,0.00024281,5]
[334530459,1723174271790,-1480.14,0.00024281,5]
[334530460,1723174271800,-500.0,0.00024281,5]
[334530461,1723174271809,-500.0,0.00024281,5]
[334530462,1723174271818,-509.36318051,0.00024281,5]
[334530463,1723174271827,-500.0,0.00024281,5]
[334530464,1723174271836,-2790.8,0.00024281,5]
[334530465,1723174271846,-500.0,0.00024281,5]
[334530466,1723174271857,-500.0,0.00024281,5]
[334530467,1723174271867,-163.24720115,0.00024281,5]
[334530468,1723174271879,-500.0,0.00024281,5]
[334530469,1723174271889,-936.55,0.00024281,5]
[334530470,1723174271898,-501.49,0.00024281,5]
[334530471,1723174271907,-500.0,0.00024281,5]
[334530472,1723174271917,-500.0,0.00024281,5]
[334530473,1723174271927,-529.93,0.00024281,5]
[334530474,1723174271936,-500.0,0.00024281,5]
[334530475,1723174271946,-784.6,0.00024281,5]
[334530476,1723174271955,-1378.83,0.00024281,5]
[334530477,1723174271965,-657.8,0.00024281,5]
[334530478,1723174271978,-615.45,0.00024281,5]
[334530479,1723174271988,-500.0,0.00024281,5]
[334530480,1723174271998,-500.0,0.00024281,5]
[334530481,1723174272007,-1143.35,0.00024281,5]
[334530482,1723174272017,-500.0,0.00024281,5]
[334530483,1723174272026,-500.0,0.00024281,5]
[334530484,1723174272036,-500.0,0.00024281,5]
[334530485,1723174272045,-1105.65,0.00024281,5]
[334530486,1723174272055,-660.62,0.00024281,5]
[334530487,1723174272065,-500.0,0.00024281,5]
[334530488,1723174272074,-711.99,0.00024281,5]
[334530489,1723174272084,-500.0,0.00024281,5]
[334530490,1723174272093,-500.0,0.00024281,5]
[334530491,1723174272103,-2174.51,0.00024281,5]
[334530492,1723174272112,-1755.36,0.00024281,5]
[334530493,1723174272122,-500.0,0.00024281,5]
[334530494,1723174272131,-994.49,0.00024281,5]
[334530495,1723174272140,-945.98,0.00024281,5]
[334530496,1723174272149,-945.98,0.00024281,5]
[334530497,1723174272158,-945.98,0.00024281,5]
[334530498,1723174272167,-945.98,0.00024281,5]
[334530499,1723174272177,-945.98,0.00024281,5]
[334530500,1723174272186,-945.98,0.00024281,5]
[334530501,1723174272195,-946.11529615,0.00024281,5]
[334530502,1723174272205,-500.0,0.00024281,5]
[334530503,1723174272214,-977.53,0.00024281,5]
[334530504,1723174272224,-977.53,0.00024281,5]
[334530505,1723174272238,-977.53,0.00024281,5]
[334530506,1723174272247,-977.53,0.00024281,5]
[334530507,1723174272256,-977.53,0.00024281,5]
[334530508,1723174272265,-977.53,0.00024281,5]
[334530509,1723174272274,-977.74801581,0.00024281,5]
[334530510,1723174272284,-151.0,0.00024281,7]
[334530511,1723174272294,-1850.64,0.00024281,5]
[334530512,1723174272304,-1850.64,0.00024281,5]
[334530513,1723174272314,-1850.64,0.00024281,5]
[334530514,1723174272323,-1850.64,0.00024281,5]
[334530515,1723174272334,-1850.64,0.00024281,5]
[334530516,1723174272343,-1850.64,0.00024281,5]
[334530517,1723174272352,-1850.86440845,0.00024281,5]
[334530518,1723174272361,-782.66,0.00024281,5]
[334530519,1723174272371,-782.66,0.00024281,5]
[334530520,1723174272381,-782.66,0.00024281,5]
[334530521,1723174272391,-782.66,0.00024281,5]
[334530522,1723174272401,-782.66,0.00024281,5]
[334530523,1723174272412,-782.66,0.00024281,5]
[334530524,1723174272422,-782.85173274,0.00024281,5]
[334530525,1723174272433,-827.9,0.00024281,5]
[334530526,1723174272443,-827.9,0.00024281,5]
[334530527,1723174272454,-827.9,0.00024281,5]
[334530528,1723174272463,-827.9,0.00024281,5]
[334530529,1723174272473,-827.9,0.00024281,5]
[334530530,1723174272486,-827.9,0.00024281,5]
[334530531,1723174272498,-828.1,0.00024281,5]
[334530532,1723174272625,-500.0,0.00024281,5]
[334530533,1723174272635,-2507.14,0.00024281,5]
[334530534,1723174272645,-2507.14,0.00024281,5]
[334530535,1723174272655,-2507.14,0.00024281,5]
[334530536,1723174272665,-2507.14,0.00024281,5]
[334530537,1723174272675,-2507.14,0.00024281,5]
[334530538,1723174272684,-2507.14,0.00024281,5]
[334530539,1723174272693,-2507.18113146,0.00024281,5]
[334530540,1723174272702,-500.0,0.00024281,5]
[334530541,1723174272711,-500.0,0.00024281,5]
[334530542,1723174272721,-935.41,0.00024281,5]
[334530543,1723174272733,-935.41,0.00024281,5]
[334530544,1723174272742,-935.41,0.00024281,5]
[334530545,1723174272751,-935.41,0.00024281,5]
[334530546,1723174272760,-935.41,0.00024281,5]
[334530547,1723174272770,-935.41,0.00024281,5]
[334530548,1723174272779,-935.41,0.00024281,5]
[334530549,1723174272788,-1499.89,0.00024281,5]
[334530550,1723174272797,-995.77,0.00024281,5]
[334530551,1723174272806,-995.77,0.00024281,5]
[334530552,1723174272816,-995.77,0.00024281,5]
[334530553,1723174272826,-995.77,0.00024281,5]
[334530554,1723174272836,-995.77,0.00024281,5]
[334530555,1723174272845,-995.77,0.00024281,5]
[334530556,1723174272854,-995.81356776,0.00024281,5]
[334530557,1723174272863,-500.0,0.00024281,5]
[334530558,1723174272872,-500.0,0.00024281,5]
[334530559,1723174272882,-565.38,0.00024281,5]
[334530560,1723174272892,-1561.74,0.00024281,5]
[334530561,1723174272901,-1561.74,0.00024281,5]
[334530562,1723174272910,-1561.74,0.00024281,5]
[334530563,1723174272920,-1561.74,0.00024281,5]
[334530564,1723174272929,-1561.74,0.00024281,5]
[334530565,1723174272939,-1561.74,0.00024281,5]
[334530566,1723174272948,-500.0,0.00024281,5]
[334530567,1723174272957,-500.0,0.00024281,5]
[334530568,1723174272967,-1330.55,0.00024281,5]
[334530569,1723174272980,-500.0,0.00024281,5]
[334530570,1723174272990,-1561.91936964,0.00024281,5]
[334530571,1723174272999,-500.0,0.00024281,5]
[334530572,1723174273009,-500.0,0.00024281,5]
[334530573,1723174273018,-564.46,0.00024281,5]
[334530574,1723174273027,-831.31,0.00024281,5]
[334530575,1723174273037,-831.31,0.00024281,5]
[334530576,1723174273046,-831.31,0.00024281,5]
[334530577,1723174273056,-831.31,0.00024281,5]
[334530578,1723174273065,-582.11366545,0.00024281,5]
[334530579,1723174273075,-831.31,0.00024281,5]
[334530580,1723174273084,-831.31,0.00024281,5]
[334530581,1723174273094,-831.36481355,0.00024281,5]
[334530582,1723174273103,-963.27,0.00024281,5]
[334530583,1723174273113,-500.0,0.00024281,5]
[334530584,1723174273123,-550.36,0.00024281,5]
[334530585,1723174273132,-1035.59,0.00024281,5]
[334530586,1723174273141,-500.0,0.00024281,5]
[334530587,1723174273150,-500.0,0.00024281,5]
[334530588,1723174273160,-606.69,0.00024281,5]
[334530589,1723174273170,-500.0,0.00024281,5]
[334530590,1723174273179,-13518.68,0.00024281,5]
[334530591,1723174273189,-13518.68,0.00024281,5]
[334530592,1723174273199,-13518.68,0.00024281,5]
[334530593,1723174273208,-13518.68,0.00024281,5]
[334530594,1723174273218,-13518.68,0.00024281,5]
[334530595,1723174273231,-13518.68,0.00024281,5]
[334530596,1723174273241,-13518.84,0.00024281,5]
[334530597,1723174273250,-833.33,0.00024281,5]
[334530598,1723174273260,-500.0,0.00024281,5]
[334530599,1723174273269,-500.0,0.00024281,5]
[334530600,1723174273278,-565.15,0.00024281,5]
[334530601,1723174273287,-565.15,0.00024281,5]
[334530602,1723174273297,-565.15,0.00024281,5]
[334530603,1723174273306,-565.15,0.00024281,5]
[334530604,1723174273316,-832.92,0.00024281,5]
[334530605,1723174273325,-832.92,0.00024281,5]
[334530606,1723174273334,-565.15,0.00024281,5]
[334530607,1723174273344,-832.92,0.00024281,5]
[334530608,1723174273354,-565.15,0.00024281,5]
[334530609,1723174273363,-832.92,0.00024281,5]
[334530610,1723174273373,-565.19427487,0.00024281,5]
[334530611,1723174273384,-832.92,0.00024281,5]
[334530612,1723174273394,-857.68,0.00024281,5]
[334530613,1723174273403,-832.92,0.00024281,5]
[334530614,1723174273412,-832.97625921,0.00024281,5]
[334530615,1723174273422,-510.71,0.00024281,5]
[334530616,1723174273431,-589.80576065,0.00024281,5]
[334530617,1723174273441,-500.0,0.00024281,5]
[334530618,1723174273449,-500.0,0.00024281,5]
[334530619,1723174273458,-500.0,0.00024281,5]
[334530620,1723174273467,-500.0,0.00024281,5]
[334530621,1723174273481,-500.0,0.00024281,5]
[334530622,1723174273491,-753.83,0.00024281,5]
[334530623,1723174273504,-500.0,0.00024281,5]
[334530624,1723174273513,-500.0,0.00024281,5]
[334530625,1723174273522,-342.36,0.00024281,5]
[334530626,1723174273533,-500.0,0.00024281,5]
[334530627,1723174273543,-1785.13,0.00024281,5]
[334530628,1723174273552,-1668.05,0.00024281,5]
[334530629,1723174273561,-1668.05,0.00024281,5]
[334530630,1723174273571,-1668.05,0.00024281,5]
[334530631,1723174273581,-1668.05,0.00024281,5]
[334530632,1723174273591,-1668.05,0.00024281,5]
[334530633,1723174273600,-1668.05,0.00024281,5]
[334530634,1723174273610,-1668.11,0.00024281,5]
[334530635,1723174273619,-500.0,0.00024281,5]
[334530636,1723174273629,-500.0,0.00024281,5]
[334530637,1723174273639,-500.0,0.00024281,5]
[334530638,1723174273648,-787.48,0.00024281,5]
[334530639,1723174273658,-452.04,0.00024281,5]
[334530640,1723174273667,-500.0,0.00024281,5]
[334530641,1723174273677,-500.0,0.00024281,5]
[334530642,1723174273686,-500.0,0.00024281,5]
[334530643,1723174273695,-500.0,0.00024281,5]
[334530644,1723174273705,-500.0,0.00024281,5]
[334530645,1723174273715,-508.9,0.00024281,5]
[334530646,1723174273725,-500.0,0.00024281,5]
[334530647,1723174273736,-731.5,0.00024281,5]
[334530648,1723174273746,-731.5,0.00024281,5]
[334530649,1723174273755,-731.5,0.00024281,5]
[334530650,1723174273766,-500.0,0.00024281,5]
[334530651,1723174273775,-905.68,0.00024281,5]
[334530652,1723174273785,-233.862797,0.00024281,7]
[334530653,1723174273794,-19890.77,0.00024281,5]
[334530654,1723174273804,-19890.77,0.00024281,5]
[334530655,1723174273813,-1205.28,0.00024281,5]
[334530656,1723174273823,-19890.77,0.00024281,5]
[334530657,1723174273833,-1205.28,0.00024281,5]
[334530658,1723174273842,-19890.77,0.00024281,5]
[334530659,1723174273852,-1205.28,0.00024281,5]
[334530660,1723174273861,-1205.28,0.00024281,5]
[334530661,1723174273871,-19890.77,0.00024281,5]
[334530662,1723174273880,-1205.28,0.00024281,5]
[334530663,1723174273890,-19890.77,0.00024281,5]
[334530664,1723174273899,-1205.28,0.00024281,5]
[334530665,1723174273909,-19890.83007676,0.00024281,5]
[334530666,1723174273919,-1205.45535528,0.00024281,5]
[334530667,1723174273929,-500.0,0.00024281,5]
[334530668,1723174273938,-500.0,0.00024281,5]
[334530669,1723174273948,-2383.1,0.00024281,5]
[334530670,1723174273958,-2383.1,0.00024281,5]
[334530671,1723174273968,-2611.95,0.00024281,5]
[334530672,1723174273979,-2611.95,0.00024281,5]
[334530673,1723174273989,-2383.1,0.00024281,5]
[334530674,1723174273999,-2611.95,0.00024281,5]
[334530675,1723174274008,-2611.95,0.00024281,5]
[334530676,1723174274018,-2611.95,0.00024281,5]
[334530677,1723174274028,-500.0,0.00024281,5]
[334530678,1723174274038,-2611.95,0.00024281,5]
[334530679,1723174274047,-2612.00035335,0.00024281,5]
[334530680,1723174274056,-585.42,0.00024281,5]
[334530681,1723174274065,-2383.1,0.00024281,5]
[334530682,1723174274074,-2383.1,0.00024281,5]
[334530683,1723174274083,-2383.1,0.00024281,5]
[334530684,1723174274093,-2383.26877885,0.00024281,5]
[334530685,1723174274103,-2100.11,0.00024281,5]
[334530686,1723174274112,-1149.38,0.00024281,5]
[334530687,1723174274122,-1149.38,0.00024281,5]
[334530688,1723174274131,-1149.38,0.00024281,5]
[334530689,1723174274141,-1149.38,0.00024281,5]
[334530690,1723174274150,-1149.38,0.00024281,5]
[334530691,1723174274160,-1149.38,0.00024281,5]
[334530692,1723174274169,-1149.39822073,0.00024281,5]
[334530693,1723174274179,-500.0,0.00024281,5]
[334530694,1723174274189,-2719.86,0.00024281,5]
[334530695,1723174274198,-2719.86,0.00024281,5]
[334530696,1723174274207,-2719.86,0.00024281,5]
[334530697,1723174274217,-2719.86,0.00024281,5]
[334530698,1723174274228,-2719.86,0.00024281,5]
[334530699,1723174274237,-2719.86,0.00024281,5]
[334530700,1723174274246,-2719.92928937,0.00024281,5]
[334530701,1723174274256,-151.0,0.00024281,2]
[334530702,1723174274265,-4631.56,0.00024281,5]
[334530703,1723174274274,-4631.56,0.00024281,5]
[334530704,1723174274283,-4631.56,0.00024281,5]
[334530705,1723174274293,-4631.56,0.00024281,5]
[334530706,1723174274302,-4631.56,0.00024281,5]
[334530707,1723174274311,-4631.56,0.00024281,5]
[334530708,1723174274320,-4631.56407479,0.00024281,5]
[334530709,1723174274329,-782.73,0.00024281,5]
[334530710,1723174274338,-782.73,0.00024281,5]
[334530711,1723174274347,-782.73,0.00024281,5]
[334530712,1723174274356,-782.73,0.00024281,5]
[334530713,1723174274365,-782.73,0.00024281,5]
[334530714,1723174274374,-782.73,0.00024281,5]
[334530715,1723174274391,-782.74176615,0.00024281,5]
[334530716,1723174274400,-578.07,0.00024281,5]
[334530717,1723174274409,-1304.69,0.00024281,5]
[334530718,1723174274419,-1304.69,0.00024281,5]
[334530719,1723174274428,-1304.69,0.00024281,5]
[334530720,1723174274437,-1304.69,0.00024281,5]
[334530721,1723174274446,-1304.69,0.00024281,5]
[334530722,1723174274455,-1304.69,0.00024281,5]
[334530723,1723174274464,-1304.75269644,0.00024281,5]
[334530724,1723174274473,-500.0,0.00024281,5]
[334530725,1723174274488,-292.96386629,0.00024281,5]
[334530726,1723174274504,-7755.2,0.00024281,5]
[334530727,1723174274623,-7755.2,0.00024281,5]
[334530728,1723174274633,-7755.2,0.00024281,5]
[334530729,1723174274643,-500.0,0.00024281,5]
[334530730,1723174274653,-7755.2,0.00024281,5]
[334530731,1723174274663,-7755.2,0.00024281,5]
[334530732,1723174274673,-7755.2,0.00024281,5]
[334530733,1723174274682,-7755.42535728,0.00024281,5]
[334530734,1723174274691,-801.24,0.00024281,5]
[334530735,1723174274701,-801.24,0.00024281,5]
[334530736,1723174274710,-801.24,0.00024281,5]
[334530737,1723174274719,-2105.7,0.00024281,5]
[334530738,1723174274731,-801.24,0.00024281,5]
[334530739,1723174274741,-2105.7,0.00024281,5]
[334530740,1723174274750,-801.24,0.00024281,5]
[334530741,1723174274760,-2105.7,0.00024281,5]
[334530742,1723174274769,-801.24,0.00024281,5]
[334530743,1723174274780,-2105.7,0.00024281,5]
[334530744,1723174274791,-801.36,0.00024281,5]
[334530745,1723174274801,-2105.7,0.00024281,5]
[334530746,1723174274811,-2105.7,0.00024281,5]
[334530747,1723174274822,-2105.76,0.00024281,5]
[334530748,1723174274833,-1393.39,0.00024281,5]
[334530749,1723174274842,-500.0,0.00024281,5]
[334530750,1723174274852,-1966.42,0.00024281,5]
[334530751,1723174274864,-500.0,0.00024281,5]
[334530752,1723174274874,-500.0,0.00024281,5]
[334530753,1723174274884,-434.06,0.00024281,5]
[334530754,1723174274893,-500.0,0.00024281,5]
[334530755,1723174274903,-500.0,0.00024281,5]
[334530756,1723174274913,-1267.68,0.00024281,5]
[334530757,1723174274922,-3991.69,0.00024281,5]
[334530758,1723174274932,-3991.69,0.00024281,5]
[334530759,1723174274942,-3991.69,0.00024281,5]
[334530760,1723174274951,-3991.69,0.00024281,5]
[334530761,1723174274961,-3991.69,0.00024281,5]
[334530762,1723174274971,-3991.69,0.00024281,5]
[334530763,1723174274985,-3991.79063209,0.00024281,5]
[334530764,1723174275001,-685.54,0.00024281,5]
[334530765,1723174275010,-1471.19,0.00024281,5]
[334530766,1723174275020,-761.21,0.00024281,5]
[334530767,1723174275030,-664.06,0.00024281,5]
[334530768,1723174275040,-1441.91,0.00024281,5]
[334530769,1723174275050,-1441.91,0.00024281,5]
[334530770,1723174275060,-1441.91,0.00024281,5]
[334530771,1723174275070,-1441.91,0.00024281,5]
[334530772,1723174275079,-1441.91,0.00024281,5]
[334530773,1723174275089,-1441.91,0.00024281,5]
[334530774,1723174275099,-1441.92624727,0.00024281,5]
[334530775,1723174275109,-500.0,0.00024281,5]
[334530776,1723174275118,-500.0,0.00024281,5]
[334530777,1723174275127,-339.62,0.00024281,5]
[334530778,1723174275137,-2367.69,0.00024281,5]
[334530779,1723174275146,-500.0,0.00024281,5]
[334530780,1723174275156,-2379.25,0.00024281,5]
[334530781,1723174275166,-500.0,0.00024282,5]
[334530782,1723174275175,-500.0,0.00024282,5]
[334530783,1723174275185,-500.0,0.00024282,5]
[334530784,1723174275194,-1613.44,0.00024282,5]
[334530785,1723174275204,-741.44,0.00024282,5]
[334530786,1723174275213,-880.06,0.00024282,5]
[334530787,1723174275223,-500.0,0.00024282,5]
[334530788,1723174275238,-304.79041092,0.00024282,5]
[334530789,1723174275247,-1307.04,0.00024282,5]
[334530790,1723174275257,-1023.32,0.00024282,5]
[334530791,1723174275266,-511.08,0.00024282,5]
[334530792,1723174275276,-500.0,0.00024282,5]
[334530793,1723174275285,-500.0,0.00024282,5]
[334530794,1723174275294,-151.0,0.00024282,7]
[334530795,1723174275304,-500.0,0.00024282,5]
[334530796,1723174275313,-500.0,0.00024282,5]
[334530797,1723174275323,-3750.87,0.00024282,5]
[334530798,1723174275332,-3750.87,0.00024282,5]
[334530799,1723174275343,-3750.87,0.00024282,5]
[334530800,1723174275353,-3750.87,0.00024282,5]
[334530801,1723174275362,-3750.87,0.00024282,5]
[334530802,1723174275371,-3751.05741932,0.00024282,5]
[334530803,1723174275382,-500.0,0.00024282,5]
[334530804,1723174275391,-2049.62,0.00024282,5]
[334530805,1723174275401,-2049.62,0.00024282,5]
[334530806,1723174275411,-513.81,0.00024282,5]
[334530807,1723174275421,-2049.62,0.00024282,5]
[334530808,1723174275431,-2049.62,0.00024282,5]
[334530809,1723174275441,-2049.62,0.00024282,5]
[334530810,1723174275451,-2049.65243376,0.00024282,5]
[334530811,1723174275460,-2623.84,0.00024282,5]
[334530812,1723174275470,-1771.49,0.00024282,5]
[334530813,1723174275484,-1771.49,0.00024282,5]
[334530814,1723174275495,-1771.49,0.00024282,5]
[334530815,1723174275507,-1771.49,0.00024282,5]
[334530816,1723174275517,-1771.49,0.00024282,5]
[334530817,1723174275527,-1771.58570825,0.00024282,5]
[334530818,1723174275538,-432.49035,0.00024282,7]
[334530819,1723174275548,-432.49035,0.00024282,7]
[334530820,1723174275558,-500.0,0.00024282,5]
[334530821,1723174275568,-1568.96,0.00024282,5]
[334530822,1723174275579,-1568.96,0.00024282,5]
[334530823,1723174275589,-1568.96,0.00024282,5]
[334530824,1723174275599,-1568.96,0.00024282,5]
[334530825,1723174275609,-1568.96,0.00024282,5]
[334530826,1723174275619,-1569.03489424,0.00024282,5]
[334530827,1723174275629,-2794.96,0.00024282,5]
[334530828,1723174275639,-695.34,0.00024282,5]
[334530829,1723174275649,-2070.87,0.00024282,5]
[334530830,1723174275659,-1516.34,0.00024282,5]
[334530831,1723174275670,-1516.34,0.00024282,5]
[334530832,1723174275679,-500.0,0.00024282,5]
[334530833,1723174275689,-500.0,0.00024282,5]
[334530834,1723174275699,-1092.05,0.00024282,5]
[334530835,1723174275709,-2149.39,0.00024282,5]
[334530836,1723174275719,-2149.39,0.00024282,5]
[334530837,1723174275736,-2149.39,0.00024282,5]
[334530838,1723174275745,-2149.39,0.00024282,5]
[334530839,1723174275754,-2149.39,0.00024282,5]
[334530840,1723174275764,-2149.52057004,0.00024282,5]
[334530841,1723174275774,-797.93,0.00024282,5]
[334530842,1723174275783,-151.0,0.00024282,7]
[334530843,1723174275793,-500.0,0.00024282,5]
[334530844,1723174275803,-3740.49,0.00024282,5]
[334530845,1723174275813,-3740.49,0.00024282,5]
[334530846,1723174275823,-2138.78,0.00024282,5]
[334530847,1723174275833,-507.01371575,0.00024282,5]
[334530848,1723174275843,-906.11,0.00024282,5]
[334530849,1723174275853,-500.0,0.00024282,5]
[334530850,1723174275863,-906.11,0.00024282,5]
[334530851,1723174275873,-906.11,0.00024282,5]
[334530852,1723174275883,-906.11,0.00024282,5]
[334530853,1723174275893,-906.11,0.00024282,5]
[334530854,1723174275904,-906.23068858,0.00024282,5]
[334530855,1723174275914,-500.0,0.00024282,5]
[334530856,1723174275924,-3576.05,0.00024282,5]
[334530857,1723174275934,-3576.05,0.00024282,5]
[334530858,1723174275943,-3576.05,0.00024282,5]
[334530859,1723174275953,-3576.05,0.00024282,5]
[334530860,1723174275963,-3576.05,0.00024282,5]
[334530861,1723174275973,-3576.16284309,0.00024282,5]
[334530862,1723174275985,-2111.93,0.00024282,5]
[334530863,1723174275995,-500.0,0.00024282,5]
[334530864,1723174276005,-739.91,0.00024282,5]
[334530865,1723174276015,-739.91,0.00024282,5]
[334530866,1723174276025,-2291.76,0.00024282,5]
[334530867,1723174276034,-500.0,0.00024282,5]
[334530868,1723174276044,-500.0,0.00024282,5]
[334530869,1723174276054,-500.0,0.00024282,5]
[334530870,1723174276064,-150.0,0.00024282,5]
[334530871,1723174276074,-549.87906127,0.00024282,5]
[334530872,1723174276083,-2195.84,0.00024282,5]
[334530873,1723174276093,-2195.84,0.00024282,5]
[334530874,1723174276103,-2195.84,0.00024282,5]
[334530875,1723174276113,-2195.84,0.00024282,5]
[334530876,1723174276123,-2195.84,0.00024282,5]
[334530877,1723174276133,-2196.00726618,0.00024282,5]
[334530878,1723174276143,-1883.58,0.00024282,5]
[334530879,1723174276153,-856.94,0.00024282,5]
[334530880,1723174276163,-1214.81,0.00024282,5]
[334530881,1723174276173,-1214.81,0.00024282,5]
[334530882,1723174276182,-1214.81,0.00024282,5]
[334530883,1723174276192,-1214.81,0.00024282,5]
[334530884,1723174276201,-1214.81,0.00024282,5]
[334530885,1723174276211,-1214.94575735,0.00024282,5]
[334530886,1723174276221,-500.0,0.00024282,5]
[334530887,1723174276234,-500.0,0.00024282,5]
[334530888,1723174276244,-2634.31,0.00024282,5]
[334530889,1723174276254,-2000.36,0.00024282,5]
[334530890,1723174276264,-743.53,0.00024282,5]
[334530891,1723174276274,-500.0,0.00024282,5]
[334530892,1723174276283,-500.0,0.00024282,5]
[334530893,1723174276293,-1813.05,0.00024282,5]
[334530894,1723174276302,-1813.05,0.00024282,5]
[334530895,1723174276312,-1247.5,0.00024282,5]
[334530896,1723174276322,-731.5,0.00024282,5]
[334530897,1723174276332,-500.0,0.00024283,5]
[334530898,1723174276341,-500.0,0.00024283,5]
[334530899,1723174276351,-500.0,0.00024283,5]
[334530900,1723174276361,-1613.44,0.00024283,5]
[334530901,1723174276370,-741.44,0.00024283,5]
[334530902,1723174276382,-880.06,0.00024283,5]
[334530903,1723174276392,-500.0,0.00024283,5]
[334530904,1723174276401,-1307.04,0.00024283,5]
[334530905,1723174276411,-1023.32,0.00024283,5]
[334530906,1723174276421,-511.08,0.00024283,5]
[334530907,1723174276541,-500.0,0.00024283,5]
[334530908,1723174276561,-500.0,0.00024283,5]
[334530909,1723174276574,-410.41640889,0.00024283,5]
[334530910,1723174276583,-500.0,0.00024283,5]
[334530911,1723174276593,-500.0,0.00024283,5]
[334530912,1723174276603,-513.81,0.00024283,5]
[334530913,1723174276613,-2623.84,0.00024283,5]
[334530914,1723174276622,-500.0,0.00024283,5]
[334530915,1723174276632,-2794.96,0.00024283,5]
[334530916,1723174276642,-695.34,0.00024283,5]
[334530917,1723174276652,-2070.87,0.00024283,5]
[334530918,1723174276663,-1516.34,0.00024283,5]
[334530919,1723174276673,-1516.34,0.00024283,5]
[334530920,1723174276683,-1516.34,0.00024283,5]
[334530921,1723174276692,-1516.34,0.00024283,5]
[334530922,1723174276703,-1516.34,0.00024283,5]
[334530923,1723174276713,-1516.49328422,0.00024283,5]
[334530924,1723174276723,-500.0,0.00024283,5]
[334530925,1723174276736,-461.27376282,0.00024283,5]
[334530926,1723174276746,-1092.05,0.00024283,5]
[334530927,1723174276755,-797.93,0.00024283,5]
[334530928,1723174276765,-500.0,0.00024283,5]
[334530929,1723174276775,-3740.49,0.00024283,5]
[334530930,1723174276785,-3740.49,0.00024283,5]
[334530931,1723174276794,-3740.49,0.00024283,5]
[334530932,1723174276804,-3740.49,0.00024283,5]
[334530933,1723174276814,-3740.49,0.00024283,5]
[334530934,1723174276824,-3740.58,0.00024283,5]
[334530935,1723174276833,-2138.78,0.00024283,5]
[334530936,1723174276843,-500.0,0.00024283,5]
[334530937,1723174276853,-500.0,0.00024283,5]
[334530938,1723174276863,-2111.93,0.00024283,5]
[334530939,1723174276873,-500.0,0.00024283,5]
[334530940,1723174276883,-739.91,0.00024283,5]
[334530941,1723174276893,-739.91,0.00024283,5]
[334530942,1723174276903,-739.91,0.00024283,5]
[334530943,1723174276912,-739.91,0.00024283,5]
[334530944,1723174276921,-739.91,0.00024283,5]
[334530945,1723174276931,-739.95695872,0.00024283,5]
[334530946,1723174276941,-2291.76,0.00024283,5]
[334530947,1723174276950,-500.0,0.00024283,5]
[334530948,1723174276960,-500.0,0.00024283,5]
[334530949,1723174276970,-500.0,0.00024283,5]
[334530950,1723174276981,-150.0,0.00024283,5]
[334530951,1723174276990,-1883.58,0.00024283,5]
[334530952,1723174277000,-856.94,0.00024283,5]
[334530953,1723174277010,-500.0,0.00024283,5]
[334530954,1723174277020,-500.0,0.00024283,5]
[334530955,1723174277030,-2634.31,0.00024283,5]